[Event "Titled Tuesday Blitz November 22 Early 2022"]
[White "Vasques, Antonio Pedro Freixial"]
[Black "Ilkhomi, Jaloliddin"]
[WhiteFideId "1908332"]
[BlackFideId "14700948"]
[WhiteElo "2243"]
[BlackElo "2045"]
[Result "1-0"]
[Round "07"]
[TimeControl "180+1"]
[Date "2022.11.23"]
[WhiteClock "0:00:53"]
[BlackClock "0:00:01"]

1. e4 {[%clk 0:02:50]}  e6 {[%clk 0:02:59]} 2. d4 {[%clk 0:02:49]}  d5 {[%clk 0:03:00]} 3. Nc3 {[%clk 0:02:49]}  Bb4 {[%clk 0:02:59]} 4. e5 {[%clk 0:02:49]}  c5 {[%clk 0:02:58]} 5. a3 {[%clk 0:02:50]}  Bxc3+ {[%clk 0:02:59]} 6. bxc3 {[%clk 0:02:50]}  Qa5 {[%clk 0:02:58]} 7. Bd2 {[%clk 0:02:49]}  Qa4 {[%clk 0:02:58]} 8. Nf3 {[%clk 0:02:46]}  c4 {[%clk 0:02:58]} 9. h4 {[%clk 0:02:45]}  Nc6 {[%clk 0:02:58]} 10. h5 {[%clk 0:02:44]}  Bd7 {[%clk 0:02:54]} 11. h6 {[%clk 0:02:44]}  gxh6 {[%clk 0:02:54]} 12. Nh2 {[%clk 0:02:37]}  O-O-O {[%clk 0:02:37]} 13. Ra2 {[%clk 0:02:34]}  f6 {[%clk 0:02:31]} 14. Ng4 {[%clk 0:02:24]}  fxe5 {[%clk 0:02:25]} 15. dxe5 {[%clk 0:02:24]}  Nge7 {[%clk 0:02:25]} 16. f4 {[%clk 0:02:12]}  Nf5 {[%clk 0:02:02]} 17. Nxh6 {[%clk 0:02:08]}  Nxh6 {[%clk 0:01:40]} 18. Rxh6 {[%clk 0:02:09]}  d4 {[%clk 0:01:41]} 19. Qe2 {[%clk 0:01:53]}  b5 {[%clk 0:00:54]} 20. Qe4 {[%clk 0:01:36]}  dxc3 {[%clk 0:00:18]} 21. Bxc3 {[%clk 0:01:28]}  Kc7 {[%clk 0:00:19]} 22. g4 {[%clk 0:01:19]}  Rdf8 {[%clk 0:00:13]} 23. Bg2 {[%clk 0:01:13]}  b4 {[%clk 0:00:11]} 24. Qxc4 {[%clk 0:01:08]}  a5 {[%clk 0:00:04]} 25. f5 {[%clk 0:01:03]}  Rhg8 {[%clk 0:00:02]} 26. axb4 {[%clk 0:00:57]}  Qxa2 {[%clk 0:00:01]} 27. Qxa2 {[%clk 0:00:57]}  axb4 {[%clk 0:00:01]} 28. Bxc6 {[%clk 0:00:55]}  Bxc6 {[%clk 0:00:02]} 29. Qa7+ {[%clk 0:00:55]}  Bb7 {[%clk 0:00:01]} 30. Qc5+ {[%clk 0:00:54]}  Kb8 {[%clk 0:00:01]} 31. Qd6+ {[%clk 0:00:53]} 1-0


[Site "https://www.chess.com"]

[Event "Titled Tuesday Blitz November 22 Early 2022"]
[White "Vifleemskaia, Svetlana"]
[Black "Nissinen, Niilo Man"]
[WhiteFideId "4129490"]
[BlackFideId "30950767"]
[WhiteElo "1929"]
[BlackElo "1896"]
[Result "1-0"]
[Round "07"]
[TimeControl "180+1"]
[Date "2022.11.23"]
[WhiteClock "0:00:41"]
[BlackClock "0:00:02"]

1. d4 {[%clk 0:03:00]}  Nf6 {[%clk 0:02:59]} 2. c4 {[%clk 0:03:00]}  g6 {[%clk 0:02:59]} 3. Nc3 {[%clk 0:03:00]}  d5 {[%clk 0:02:58]} 4. cxd5 {[%clk 0:03:01]}  Nxd5 {[%clk 0:02:59]} 5. Bd2 {[%clk 0:03:01]}  Bg7 {[%clk 0:02:57]} 6. e4 {[%clk 0:03:01]}  Nxc3 {[%clk 0:02:57]} 7. Bxc3 {[%clk 0:03:02]}  c5 {[%clk 0:02:58]} 8. d5 {[%clk 0:03:02]}  O-O {[%clk 0:02:54]} 9. Qd2 {[%clk 0:03:02]}  e6 {[%clk 0:02:48]} 10. Bc4 {[%clk 0:03:00]}  a6 {[%clk 0:02:39]} 11. a4 {[%clk 0:02:59]}  b6 {[%clk 0:02:37]} 12. Nf3 {[%clk 0:02:49]}  exd5 {[%clk 0:02:29]} 13. Bxd5 {[%clk 0:02:37]}  Ra7 {[%clk 0:02:28]} 14. O-O {[%clk 0:02:35]}  Rd7 {[%clk 0:02:22]} 15. Bxg7 {[%clk 0:02:33]}  Kxg7 {[%clk 0:02:22]} 16. Qc3+ {[%clk 0:02:34]}  Kg8 {[%clk 0:02:22]} 17. b4 {[%clk 0:02:31]}  cxb4 {[%clk 0:02:17]} 18. Qxb4 {[%clk 0:02:30]}  Bb7 {[%clk 0:02:17]} 19. Bxb7 {[%clk 0:02:14]}  Rxb7 {[%clk 0:02:18]} 20. Rfd1 {[%clk 0:02:11]}  Qe7 {[%clk 0:02:16]} 21. Qxe7 {[%clk 0:02:06]}  Rxe7 {[%clk 0:02:17]} 22. Rd6 {[%clk 0:02:03]}  Rb7 {[%clk 0:01:59]} 23. Rad1 {[%clk 0:01:59]}  b5 {[%clk 0:01:50]} 24. axb5 {[%clk 0:01:58]}  axb5 {[%clk 0:01:51]} 25. Nd4 {[%clk 0:01:58]}  Rc8 {[%clk 0:01:31]} 26. f3 {[%clk 0:01:54]}  Kf8 {[%clk 0:01:21]} 27. e5 {[%clk 0:01:52]}  Ke7 {[%clk 0:01:15]} 28. Nb3 {[%clk 0:01:42]}  Rc3 {[%clk 0:01:09]} 29. R1d3 {[%clk 0:01:16]}  Rxd3 {[%clk 0:00:47]} 30. Rxd3 {[%clk 0:01:17]}  Na6 {[%clk 0:00:46]} 31. f4 {[%clk 0:01:12]}  Rd7 {[%clk 0:00:32]} 32. Rc3 {[%clk 0:01:09]}  b4 {[%clk 0:00:20]} 33. Rc6 {[%clk 0:01:07]}  Rd3 {[%clk 0:00:21]} 34. Na5 {[%clk 0:00:54]}  Nb8 {[%clk 0:00:06]} 35. Rb6 {[%clk 0:00:53]}  Nd7 {[%clk 0:00:02]} 36. Rxb4 {[%clk 0:00:52]}  Rd2 {[%clk 0:00:03]} 37. Nc6+ {[%clk 0:00:50]}  Ke6 {[%clk 0:00:03]} 38. Nd4+ {[%clk 0:00:49]}  Ke7 {[%clk 0:00:02]} 39. Nf3 {[%clk 0:00:48]}  Ra2 {[%clk 0:00:01]} 40. h3 {[%clk 0:00:46]}  Nf8 {[%clk 0:00:02]} 41. Ng5 {[%clk 0:00:41]} 1-0


[Site "https://www.chess.com"]

[Event "Titled Tuesday Blitz November 22 Early 2022"]
[White "Weetik, Vjacheslav"]
[Black "Bortnyk, Olexandr"]
[WhiteFideId "4153472"]
[BlackFideId "14120828"]
[WhiteElo "2469"]
[BlackElo "2723"]
[Result "0-1"]
[Round "07"]
[TimeControl "180+1"]
[Date "2022.11.22"]
[WhiteClock "0:00:03"]
[BlackClock "0:00:25"]

1. d4 {[%clk 0:02:59]}  d6 {[%clk 0:02:28]} 2. e4 {[%clk 0:02:58]}  Nf6 {[%clk 0:02:26]} 3. Nc3 {[%clk 0:02:57]}  Nbd7 {[%clk 0:02:27]} 4. g3 {[%clk 0:02:54]}  c5 {[%clk 0:02:26]} 5. Nge2 {[%clk 0:02:50]}  g6 {[%clk 0:02:24]} 6. Bg2 {[%clk 0:02:49]}  Bg7 {[%clk 0:02:24]} 7. O-O {[%clk 0:02:49]}  O-O {[%clk 0:02:25]} 8. h3 {[%clk 0:02:38]}  Rb8 {[%clk 0:02:25]} 9. a4 {[%clk 0:02:37]}  cxd4 {[%clk 0:02:20]} 10. Nxd4 {[%clk 0:02:37]}  Ne5 {[%clk 0:02:20]} 11. f4 {[%clk 0:02:26]}  Nc6 {[%clk 0:02:19]} 12. Be3 {[%clk 0:02:23]}  Bd7 {[%clk 0:02:16]} 13. Nb3 {[%clk 0:02:19]}  Be6 {[%clk 0:02:14]} 14. Nd5 {[%clk 0:02:15]}  Rc8 {[%clk 0:02:02]} 15. c3 {[%clk 0:02:03]}  Bxd5 {[%clk 0:01:54]} 16. exd5 {[%clk 0:02:03]}  Na5 {[%clk 0:01:55]} 17. Nxa5 {[%clk 0:01:55]}  Qxa5 {[%clk 0:01:56]} 18. Re1 {[%clk 0:01:46]}  Rfe8 {[%clk 0:01:55]} 19. Bf2 {[%clk 0:01:46]}  Nd7 {[%clk 0:01:53]} 20. h4 {[%clk 0:01:41]}  Qc7 {[%clk 0:01:46]} 21. h5 {[%clk 0:01:40]}  a5 {[%clk 0:01:40]} 22. hxg6 {[%clk 0:01:39]}  hxg6 {[%clk 0:01:41]} 23. Bf3 {[%clk 0:01:32]}  Qc4 {[%clk 0:01:31]} 24. Kg2 {[%clk 0:01:32]}  Nc5 {[%clk 0:01:29]} 25. Re3 {[%clk 0:01:22]}  Qb3 {[%clk 0:01:21]} 26. Qxb3 {[%clk 0:00:33]}  Nxb3 {[%clk 0:01:22]} 27. Rae1 {[%clk 0:00:34]}  Rc7 {[%clk 0:01:04]} 28. Be2 {[%clk 0:00:32]}  Bf6 {[%clk 0:00:58]} 29. Bb5 {[%clk 0:00:30]}  Rec8 {[%clk 0:00:58]} 30. g4 {[%clk 0:00:24]}  g5 {[%clk 0:00:40]} 31. Bg3 {[%clk 0:00:24]}  Nd2 {[%clk 0:00:37]} 32. R1e2 {[%clk 0:00:23]}  Nc4 {[%clk 0:00:37]} 33. Re4 {[%clk 0:00:21]}  Nb6 {[%clk 0:00:37]} 34. Rd2 {[%clk 0:00:16]}  Rc5 {[%clk 0:00:36]} 35. fxg5 {[%clk 0:00:13]}  Bxg5 {[%clk 0:00:36]} 36. Rf2 {[%clk 0:00:13]}  Nxd5 {[%clk 0:00:36]} 37. Kh3 {[%clk 0:00:05]}  Kg7 {[%clk 0:00:33]} 38. Bd7 {[%clk 0:00:05]}  Rh8+ {[%clk 0:00:33]} 39. Kg2 {[%clk 0:00:06]}  Nf6 {[%clk 0:00:24]} 40. Rxe7 {[%clk 0:00:05]}  Rc7 {[%clk 0:00:25]} 41. Bxd6 {[%clk 0:00:02]}  Rxd7 {[%clk 0:00:24]} 42. Rxf6 {[%clk 0:00:03]}  Rxe7 {[%clk 0:00:25]} 0-1


[Site "https://www.chess.com"]

[Event "Titled Tuesday Blitz November 22 Early 2022"]
[White "Xiong, Jeffery"]
[Black "Zhigalko, Sergei"]
[WhiteFideId "2047640"]
[BlackFideId "13502956"]
[WhiteElo "2725"]
[BlackElo "2662"]
[Result "1-0"]
[Round "07"]
[TimeControl "180+1"]
[Date "2022.11.22"]
[WhiteClock "0:00:16"]
[BlackClock "0:00:01"]

1. e4 {[%clk 0:03:00]}  c5 {[%clk 0:02:59]} 2. Nf3 {[%clk 0:02:59]}  Nc6 {[%clk 0:02:59]} 3. Nc3 {[%clk 0:02:56]}  Nf6 {[%clk 0:02:59]} 4. Bb5 {[%clk 0:02:54]}  Qc7 {[%clk 0:02:58]} 5. O-O {[%clk 0:02:54]}  Nd4 {[%clk 0:02:58]} 6. Re1 {[%clk 0:02:42]}  a6 {[%clk 0:02:57]} 7. Bf1 {[%clk 0:02:40]}  e5 {[%clk 0:02:56]} 8. Nd5 {[%clk 0:02:38]}  Nxd5 {[%clk 0:02:56]} 9. exd5 {[%clk 0:02:39]}  d6 {[%clk 0:02:56]} 10. b4 {[%clk 0:02:36]}  Be7 {[%clk 0:02:24]} 11. bxc5 {[%clk 0:02:35]}  Nxf3+ {[%clk 0:02:22]} 12. Qxf3 {[%clk 0:02:35]}  Qxc5 {[%clk 0:02:23]} 13. Ba3 {[%clk 0:02:25]}  Qc7 {[%clk 0:02:07]} 14. d4 {[%clk 0:02:15]}  O-O {[%clk 0:01:54]} 15. Bd3 {[%clk 0:02:15]}  Re8 {[%clk 0:01:11]} 16. Qg3 {[%clk 0:00:57]}  Bf6 {[%clk 0:00:54]} 17. dxe5 {[%clk 0:00:58]}  Bxe5 {[%clk 0:00:40]} 18. Bb2 {[%clk 0:00:47]}  Bd7 {[%clk 0:00:32]} 19. Qh4 {[%clk 0:00:33]}  g6 {[%clk 0:00:22]} 20. Bxe5 {[%clk 0:00:33]}  Rxe5 {[%clk 0:00:15]} 21. Rxe5 {[%clk 0:00:34]}  dxe5 {[%clk 0:00:15]} 22. Qf6 {[%clk 0:00:34]}  Re8 {[%clk 0:00:13]} 23. Rb1 {[%clk 0:00:35]}  b5 {[%clk 0:00:13]} 24. Qxa6 {[%clk 0:00:34]}  Rc8 {[%clk 0:00:03]} 25. Bxb5 {[%clk 0:00:32]}  Bxb5 {[%clk 0:00:03]} 26. Qxb5 {[%clk 0:00:31]}  Qxc2 {[%clk 0:00:04]} 27. h3 {[%clk 0:00:24]}  Qxa2 {[%clk 0:00:03]} 28. d6 {[%clk 0:00:25]}  Qd2 {[%clk 0:00:03]} 29. Qxe5 {[%clk 0:00:23]}  Rd8 {[%clk 0:00:02]} 30. Rb6 {[%clk 0:00:19]}  Qd1+ {[%clk 0:00:01]} 31. Kh2 {[%clk 0:00:19]}  Qd3 {[%clk 0:00:01]} 32. Qe7 {[%clk 0:00:17]}  Rf8 {[%clk 0:00:02]} 33. d7 {[%clk 0:00:17]}  Ra8 {[%clk 0:00:01]} 34. Rd6 {[%clk 0:00:16]} 1-0


[Site "https://www.chess.com"]

[Event "Titled Tuesday Blitz November 22 Early 2022"]
[White "Yuan, Qingyu"]
[Black "Bashirli, Saadat"]
[WhiteFideId "8609772"]
[BlackFideId "13429990"]
[WhiteElo "2359"]
[BlackElo "1408"]
[Result "1-0"]
[Round "07"]
[TimeControl "180+1"]
[Date "2022.11.23"]
[WhiteClock "0:01:30"]
[BlackClock "0:01:38"]

1. e4 {[%clk 0:03:00]}  c5 {[%clk 0:02:56]} 2. Nf3 {[%clk 0:03:01]}  g6 {[%clk 0:02:56]} 3. d4 {[%clk 0:02:55]}  cxd4 {[%clk 0:02:57]} 4. Nxd4 {[%clk 0:02:56]}  Nc6 {[%clk 0:02:57]} 5. c4 {[%clk 0:02:54]}  Nf6 {[%clk 0:02:56]} 6. Nc3 {[%clk 0:02:54]}  Nxd4 {[%clk 0:02:57]} 7. Qxd4 {[%clk 0:02:54]}  d6 {[%clk 0:02:58]} 8. Be2 {[%clk 0:02:48]}  Bg7 {[%clk 0:02:58]} 9. Be3 {[%clk 0:02:45]}  O-O {[%clk 0:02:57]} 10. Qd2 {[%clk 0:02:45]}  Ng4 {[%clk 0:02:54]} 11. Bxg4 {[%clk 0:02:40]}  Bxg4 {[%clk 0:02:54]} 12. Rc1 {[%clk 0:02:40]}  Be6 {[%clk 0:02:52]} 13. b3 {[%clk 0:02:39]}  Qa5 {[%clk 0:02:49]} 14. O-O {[%clk 0:02:36]}  Rfc8 {[%clk 0:02:48]} 15. Bd4 {[%clk 0:02:22]}  Qh5 {[%clk 0:02:43]} 16. h3 {[%clk 0:02:13]}  Bh6 {[%clk 0:02:36]} 17. Be3 {[%clk 0:02:13]}  Bg7 {[%clk 0:02:35]} 18. Bd4 {[%clk 0:02:13]}  Bh6 {[%clk 0:02:35]} 19. Be3 {[%clk 0:02:12]}  Bg7 {[%clk 0:02:35]} 20. Rfd1 {[%clk 0:02:11]}  Qh4 {[%clk 0:02:29]} 21. Bg5 {[%clk 0:02:07]}  Qh5 {[%clk 0:02:27]} 22. Bxe7 {[%clk 0:02:07]}  Bh6 {[%clk 0:02:25]} 23. f4 {[%clk 0:02:06]}  Bxh3 {[%clk 0:02:21]} 24. gxh3 {[%clk 0:01:59]}  Qxh3 {[%clk 0:02:21]} 25. Bg5 {[%clk 0:01:58]}  Bg7 {[%clk 0:02:15]} 26. Nd5 {[%clk 0:01:50]}  Re8 {[%clk 0:02:02]} 27. Qg2 {[%clk 0:01:27]}  Qxg2+ {[%clk 0:01:56]} 28. Kxg2 {[%clk 0:01:28]}  Rxe4 {[%clk 0:01:57]} 29. Re1 {[%clk 0:01:21]}  Rae8 {[%clk 0:01:54]} 30. Kf1 {[%clk 0:01:16]}  h6 {[%clk 0:01:49]} 31. Bf6 {[%clk 0:01:13]}  Kh8 {[%clk 0:01:43]} 32. Rxe4 {[%clk 0:01:06]}  Rxe4 {[%clk 0:01:42]} 33. Re1 {[%clk 0:01:06]}  Rxe1+ {[%clk 0:01:36]} 34. Kxe1 {[%clk 0:01:07]}  Bxf6 {[%clk 0:01:36]} 35. Nxf6 {[%clk 0:01:07]}  h5 {[%clk 0:01:35]} 36. Kf2 {[%clk 0:01:07]}  Kg7 {[%clk 0:01:35]} 37. Ne8+ {[%clk 0:01:07]}  Kf8 {[%clk 0:01:33]} 38. Nxd6 {[%clk 0:01:08]}  b6 {[%clk 0:01:33]} 39. Nc8 {[%clk 0:01:08]}  Ke8 {[%clk 0:01:31]} 40. Nxa7 {[%clk 0:01:08]}  Kd7 {[%clk 0:01:32]} 41. Nb5 {[%clk 0:01:09]}  Ke6 {[%clk 0:01:32]} 42. Nd4+ {[%clk 0:01:09]}  Kf6 {[%clk 0:01:31]} 43. b4 {[%clk 0:01:10]}  h4 {[%clk 0:01:30]} 44. a4 {[%clk 0:01:07]}  h3 {[%clk 0:01:30]} 45. a5 {[%clk 0:01:07]}  h2 {[%clk 0:01:31]} 46. Kg2 {[%clk 0:01:07]}  h1=Q+ {[%clk 0:01:32]} 47. Kxh1 {[%clk 0:01:07]}  bxa5 {[%clk 0:01:33]} 48. bxa5 {[%clk 0:01:08]}  Ke7 {[%clk 0:01:34]} 49. a6 {[%clk 0:01:08]}  Kd6 {[%clk 0:01:33]} 50. a7 {[%clk 0:01:08]}  Kc5 {[%clk 0:01:32]} 51. a8=Q {[%clk 0:01:08]}  Kb4 {[%clk 0:01:29]} 52. Qb7+ {[%clk 0:01:07]}  Kc3 {[%clk 0:01:27]} 53. Nf3 {[%clk 0:01:08]}  Kd3 {[%clk 0:01:26]} 54. Qxf7 {[%clk 0:01:09]}  Kc3 {[%clk 0:01:26]} 55. Qxg6 {[%clk 0:01:10]}  Kb4 {[%clk 0:01:26]} 56. Qe4 {[%clk 0:01:09]}  Kc3 {[%clk 0:01:25]} 57. f5 {[%clk 0:01:10]}  Kb4 {[%clk 0:01:24]} 58. f6 {[%clk 0:01:11]}  Kc3 {[%clk 0:01:25]} 59. f7 {[%clk 0:01:12]}  Kb4 {[%clk 0:01:26]} 60. Kg2 {[%clk 0:01:13]}  Kc3 {[%clk 0:01:26]} 61. Kh2 {[%clk 0:01:13]}  Kb4 {[%clk 0:01:27]} 62. Kg3 {[%clk 0:01:14]}  Kc3 {[%clk 0:01:28]} 63. Kh3 {[%clk 0:01:15]}  Kb4 {[%clk 0:01:29]} 64. Kg4 {[%clk 0:01:16]}  Kc3 {[%clk 0:01:30]} 65. Kh4 {[%clk 0:01:17]}  Kb4 {[%clk 0:01:29]} 66. Kg5 {[%clk 0:01:18]}  Kc3 {[%clk 0:01:30]} 67. Kh5 {[%clk 0:01:19]}  Kb4 {[%clk 0:01:31]} 68. Kg6 {[%clk 0:01:20]}  Kc3 {[%clk 0:01:32]} 69. Kh6 {[%clk 0:01:21]}  Kb4 {[%clk 0:01:33]} 70. Kg7 {[%clk 0:01:22]}  Kc3 {[%clk 0:01:32]} 71. Kh7 {[%clk 0:01:22]}  Kb4 {[%clk 0:01:33]} 72. Kh8 {[%clk 0:01:23]}  Kc3 {[%clk 0:01:34]} 73. Kg8 {[%clk 0:01:24]}  Kb4 {[%clk 0:01:34]} 74. Kg7 {[%clk 0:01:25]}  Kc3 {[%clk 0:01:35]} 75. Kh8 {[%clk 0:01:26]}  Kb4 {[%clk 0:01:35]} 76. Ne5 {[%clk 0:01:27]}  Kc3 {[%clk 0:01:36]} 77. Kg8 {[%clk 0:01:28]}  Kb4 {[%clk 0:01:37]} 78. Nd7 {[%clk 0:01:27]}  Kc3 {[%clk 0:01:38]} 79. f8=Q {[%clk 0:01:28]}  Kb3 {[%clk 0:01:37]} 80. c5 {[%clk 0:01:27]}  Kc3 {[%clk 0:01:38]} 81. Qff3+ {[%clk 0:01:28]}  Kb2 {[%clk 0:01:38]} 82. Qee2+ {[%clk 0:01:29]}  Kb1 {[%clk 0:01:38]} 83. Qff1# {[%clk 0:01:30]} 1-0


[Site "https://www.chess.com"]

[Event "Titled Tuesday Blitz November 22 Early 2022"]
[White "Yurovskykh, Oleksandr"]
[Black "Savic, Miroslav"]
[WhiteFideId "14134020"]
[BlackFideId "14508494"]
[WhiteElo "2265"]
[BlackElo "2209"]
[Result "1-0"]
[Round "07"]
[TimeControl "180+1"]
[Date "2022.11.23"]
[WhiteClock "0:00:07"]
[BlackClock "0:00:01"]

1. g3 {[%clk 0:03:00]}  Nf6 {[%clk 0:02:54]} 2. Bg2 {[%clk 0:02:58]}  e5 {[%clk 0:02:53]} 3. e4 {[%clk 0:02:56]}  Nc6 {[%clk 0:02:49]} 4. Ne2 {[%clk 0:02:55]}  d5 {[%clk 0:02:47]} 5. exd5 {[%clk 0:02:55]}  Nxd5 {[%clk 0:02:47]} 6. O-O {[%clk 0:02:55]}  Be6 {[%clk 0:02:47]} 7. Nbc3 {[%clk 0:02:54]}  Be7 {[%clk 0:02:34]} 8. d4 {[%clk 0:02:52]}  exd4 {[%clk 0:02:23]} 9. Nxd4 {[%clk 0:02:48]}  Nxc3 {[%clk 0:02:19]} 10. bxc3 {[%clk 0:02:47]}  Nxd4 {[%clk 0:02:04]} 11. cxd4 {[%clk 0:02:46]}  Bd5 {[%clk 0:02:04]} 12. Bxd5 {[%clk 0:02:43]}  Qxd5 {[%clk 0:02:03]} 13. Re1 {[%clk 0:02:44]}  Rd8 {[%clk 0:01:55]} 14. Ba3 {[%clk 0:02:40]}  Rd7 {[%clk 0:01:49]} 15. Qg4 {[%clk 0:02:22]}  g6 {[%clk 0:01:20]} 16. Bxe7 {[%clk 0:02:18]}  Rxe7 {[%clk 0:01:18]} 17. Qc8+ {[%clk 0:02:12]}  Qd8 {[%clk 0:01:18]} 18. Rxe7+ {[%clk 0:01:40]}  Kxe7 {[%clk 0:01:15]} 19. Qxb7 {[%clk 0:01:38]}  Qxd4 {[%clk 0:01:11]} 20. Qxc7+ {[%clk 0:01:36]}  Kf6 {[%clk 0:01:08]} 21. Re1 {[%clk 0:01:21]}  Rd8 {[%clk 0:00:58]} 22. c3 {[%clk 0:01:18]}  Qd6 {[%clk 0:00:45]} 23. Qxa7 {[%clk 0:01:14]}  Qd2 {[%clk 0:00:42]} 24. Qe3 {[%clk 0:00:26]}  Qd6 {[%clk 0:00:27]} 25. a4 {[%clk 0:00:23]}  Ra8 {[%clk 0:00:23]} 26. Ra1 {[%clk 0:00:19]}  Rd8 {[%clk 0:00:13]} 27. a5 {[%clk 0:00:18]}  Qa6 {[%clk 0:00:13]} 28. Qh6 {[%clk 0:00:12]}  Rd5 {[%clk 0:00:07]} 29. Qxh7 {[%clk 0:00:10]}  Rxa5 {[%clk 0:00:05]} 30. Qh8+ {[%clk 0:00:10]}  Ke6 {[%clk 0:00:04]} 31. Re1+ {[%clk 0:00:10]}  Kf5 {[%clk 0:00:01]} 32. Qh3+ {[%clk 0:00:07]} 1-0


[Site "https://www.chess.com"]

[Event "Titled Tuesday Blitz November 22 Early 2022"]
[White "monkins"]
[Black "Seletsky, Grigory"]
[BlackFideId "14112191"]
[WhiteElo "2146"]
[BlackElo "2492"]
[Result "0-1"]
[Round "07"]
[TimeControl "180+1"]
[Date "2022.11.23"]
[WhiteClock "0:00:01"]
[BlackClock "0:00:23"]

1. Nf3 {[%clk 0:03:00]}  d5 {[%clk 0:02:58]} 2. c4 {[%clk 0:03:01]}  c6 {[%clk 0:02:58]} 3. g3 {[%clk 0:03:00]}  Nf6 {[%clk 0:02:59]} 4. Bg2 {[%clk 0:03:01]}  Bf5 {[%clk 0:02:57]} 5. O-O {[%clk 0:03:01]}  e6 {[%clk 0:02:57]} 6. d3 {[%clk 0:03:01]}  Nbd7 {[%clk 0:02:55]} 7. Nbd2 {[%clk 0:03:01]}  h6 {[%clk 0:02:54]} 8. Rb1 {[%clk 0:03:00]}  a5 {[%clk 0:02:52]} 9. a3 {[%clk 0:03:00]}  Bh7 {[%clk 0:02:50]} 10. b4 {[%clk 0:02:59]}  axb4 {[%clk 0:02:51]} 11. axb4 {[%clk 0:03:00]}  Be7 {[%clk 0:02:42]} 12. b5 {[%clk 0:03:00]}  O-O {[%clk 0:02:42]} 13. bxc6 {[%clk 0:02:46]}  bxc6 {[%clk 0:02:42]} 14. Qc2 {[%clk 0:02:46]}  Rc8 {[%clk 0:02:37]} 15. Bb2 {[%clk 0:02:44]}  Ne8 {[%clk 0:02:32]} 16. Rfc1 {[%clk 0:02:41]}  Nd6 {[%clk 0:02:29]} 17. Nd4 {[%clk 0:02:01]}  c5 {[%clk 0:02:25]} 18. N4f3 {[%clk 0:01:40]}  Bf6 {[%clk 0:02:10]} 19. Ra1 {[%clk 0:01:31]}  Bxb2 {[%clk 0:02:01]} 20. Qxb2 {[%clk 0:01:32]}  Rb8 {[%clk 0:01:57]} 21. Qa3 {[%clk 0:01:24]}  d4 {[%clk 0:01:48]} 22. Nb3 {[%clk 0:01:10]}  Qc7 {[%clk 0:01:41]} 23. Nfd2 {[%clk 0:01:09]}  Rfc8 {[%clk 0:01:32]} 24. Qa5 {[%clk 0:00:53]}  e5 {[%clk 0:01:24]} 25. h4 {[%clk 0:00:39]}  f5 {[%clk 0:01:22]} 26. Qxc7 {[%clk 0:00:35]}  Rxc7 {[%clk 0:01:22]} 27. Ra6 {[%clk 0:00:34]}  Rb6 {[%clk 0:01:20]} 28. Rxb6 {[%clk 0:00:30]}  Nxb6 {[%clk 0:01:19]} 29. Ra1 {[%clk 0:00:31]}  e4 {[%clk 0:01:15]} 30. Ra6 {[%clk 0:00:24]}  Ndc8 {[%clk 0:01:08]} 31. Ra5 {[%clk 0:00:16]}  exd3 {[%clk 0:01:02]} 32. exd3 {[%clk 0:00:15]}  Nd7 {[%clk 0:01:00]} 33. Bd5+ {[%clk 0:00:14]}  Kf8 {[%clk 0:00:59]} 34. Ra8 {[%clk 0:00:10]}  Ke7 {[%clk 0:00:57]} 35. f4 {[%clk 0:00:10]}  Bg6 {[%clk 0:00:49]} 36. Ra5 {[%clk 0:00:06]}  Bh5 {[%clk 0:00:47]} 37. Bf3 {[%clk 0:00:05]}  Bxf3 {[%clk 0:00:46]} 38. Nxf3 {[%clk 0:00:05]}  Nd6 {[%clk 0:00:41]} 39. Ne5 {[%clk 0:00:05]}  Nb7 {[%clk 0:00:29]} 40. Ra7 {[%clk 0:00:02]}  Nxe5 {[%clk 0:00:29]} 41. fxe5 {[%clk 0:00:03]}  Kd7 {[%clk 0:00:27]} 42. Rxb7 {[%clk 0:00:01]}  Rxb7 {[%clk 0:00:26]} 43. Nxc5+ {[%clk 0:00:02]}  Kc6 {[%clk 0:00:26]} 44. Nxb7 {[%clk 0:00:02]}  Kxb7 {[%clk 0:00:27]} 45. c5 {[%clk 0:00:02]}  Kc6 {[%clk 0:00:27]} 46. e6 {[%clk 0:00:02]}  g5 {[%clk 0:00:27]} 47. h5 {[%clk 0:00:02]}  Kc7 {[%clk 0:00:26]} 48. Kf2 {[%clk 0:00:01]}  Kc6 {[%clk 0:00:23]} 0-1


[Site "https://www.chess.com"]

[Event "Titled Tuesday Blitz November 22 Early 2022"]
[White "Ansh M Shah"]
[Black "Averjanov, Alexey"]
[WhiteFideId "25033379"]
[BlackFideId "14109867"]
[WhiteElo "2084"]
[BlackElo "2601"]
[Result "0-1"]
[Round "08"]
[TimeControl "180+1"]
[Date "2022.11.23"]
[WhiteClock "0:00:02"]
[BlackClock "0:01:15"]

1. d4 {[%clk 0:03:00]}  d5 {[%clk 0:02:57]} 2. c4 {[%clk 0:03:01]}  dxc4 {[%clk 0:02:58]} 3. e3 {[%clk 0:02:58]}  Nf6 {[%clk 0:02:58]} 4. Bxc4 {[%clk 0:02:59]}  e6 {[%clk 0:02:59]} 5. Nf3 {[%clk 0:02:59]}  a6 {[%clk 0:02:59]} 6. a4 {[%clk 0:02:59]}  c5 {[%clk 0:02:59]} 7. O-O {[%clk 0:02:59]}  Nc6 {[%clk 0:02:59]} 8. Nc3 {[%clk 0:02:53]}  cxd4 {[%clk 0:02:56]} 9. exd4 {[%clk 0:02:54]}  Nb4 {[%clk 0:02:55]} 10. Bg5 {[%clk 0:02:51]}  Be7 {[%clk 0:02:55]} 11. Re1 {[%clk 0:02:30]}  O-O {[%clk 0:02:55]} 12. Qb3 {[%clk 0:02:29]}  Nc6 {[%clk 0:02:55]} 13. Qd1 {[%clk 0:02:14]}  Nb4 {[%clk 0:02:54]} 14. Qb3 {[%clk 0:02:12]}  Nc6 {[%clk 0:02:54]} 15. Qd1 {[%clk 0:02:13]}  Nd5 {[%clk 0:02:54]} 16. Bxd5 {[%clk 0:02:07]}  exd5 {[%clk 0:02:48]} 17. Bxe7 {[%clk 0:02:02]}  Nxe7 {[%clk 0:02:49]} 18. Qb3 {[%clk 0:01:48]}  Qd6 {[%clk 0:02:34]} 19. Ne5 {[%clk 0:01:32]}  Be6 {[%clk 0:02:30]} 20. a5 {[%clk 0:01:21]}  Rfc8 {[%clk 0:02:28]} 21. Na4 {[%clk 0:01:10]}  Rc7 {[%clk 0:02:25]} 22. Nb6 {[%clk 0:01:07]}  Rd8 {[%clk 0:02:25]} 23. Rac1 {[%clk 0:01:06]}  f6 {[%clk 0:02:24]} 24. Nf3 {[%clk 0:00:36]}  Kf7 {[%clk 0:02:17]} 25. h3 {[%clk 0:00:25]}  Nf5 {[%clk 0:02:13]} 26. Qd3 {[%clk 0:00:16]}  h5 {[%clk 0:02:05]} 27. g4 {[%clk 0:00:06]}  hxg4 {[%clk 0:02:04]} 28. hxg4 {[%clk 0:00:07]}  Nh6 {[%clk 0:02:01]} 29. g5 {[%clk 0:00:07]}  Nf5 {[%clk 0:01:57]} 30. Rxc7+ {[%clk 0:00:03]}  Qxc7 {[%clk 0:01:56]} 31. g6+ {[%clk 0:00:03]}  Kxg6 {[%clk 0:01:48]} 32. Rxe6 {[%clk 0:00:03]}  Qc1+ {[%clk 0:01:47]} 33. Re1 {[%clk 0:00:04]}  Qf4 {[%clk 0:01:47]} 34. Nh2 {[%clk 0:00:03]}  Rh8 {[%clk 0:01:46]} 35. Nf1 {[%clk 0:00:03]}  Kf7 {[%clk 0:01:31]} 36. Ng3 {[%clk 0:00:03]}  Rh3 {[%clk 0:01:20]} 37. Qxf5 {[%clk 0:00:03]}  Rxg3+ {[%clk 0:01:19]} 38. fxg3 {[%clk 0:00:03]}  Qxf5 {[%clk 0:01:19]} 39. Na4 {[%clk 0:00:03]}  Qd3 {[%clk 0:01:15]} 40. Kf2 {[%clk 0:00:02]}  Qxd4+ {[%clk 0:01:15]} 0-1


[Site "https://www.chess.com"]